[Event "Titled Tuesday Blitz August 24 2021"]
[White "Svane, Rasmus"]
[Black "Makhnev, Denis"]
[WhiteFideId "4657101"]
[BlackFideId "13707647"]
[WhiteElo "2669"]
[BlackElo "2537"]
[Result "0-1"]
[Round "05"]
[TimeControl "180+1"]
[Date "2021.08.24"]
[WhiteClock "0:00:04"]
[BlackClock "0:00:11"]

1. Nf3 {[%clk 0:00:35]}  Nf6 {[%clk 0:02:54]} 2. g3 {[%clk 0:00:35]}  d5 {[%clk 0:02:52]} 3. Bg2 {[%clk 0:00:36]}  Bf5 {[%clk 0:02:52]} 4. O-O {[%clk 0:00:36]}  e6 {[%clk 0:02:51]} 5. c4 {[%clk 0:00:37]}  c6 {[%clk 0:02:51]} 6. Qb3 {[%clk 0:00:37]}  Qb6 {[%clk 0:02:50]} 7. d3 {[%clk 0:00:38]}  Nbd7 {[%clk 0:02:46]} 8. cxd5 {[%clk 0:00:34]}  Qxb3 {[%clk 0:02:44]} 9. axb3 {[%clk 0:00:35]}  exd5 {[%clk 0:02:43]} 10. Bd2 {[%clk 0:00:36]}  Bc5 {[%clk 0:02:41]} 11. Bc3 {[%clk 0:00:36]}  O-O {[%clk 0:02:39]} 12. b4 {[%clk 0:00:36]}  Bb6 {[%clk 0:02:38]} 13. Nbd2 {[%clk 0:00:37]}  Rfe8 {[%clk 0:02:36]} 14. Rfe1 {[%clk 0:00:37]}  Ng4 {[%clk 0:02:27]} 15. Nd4 {[%clk 0:00:36]}  Bg6 {[%clk 0:02:23]} 16. N2b3 {[%clk 0:00:35]}  Re7 {[%clk 0:02:09]} 17. h3 {[%clk 0:00:35]}  Ngf6 {[%clk 0:02:06]} 18. Kf1 {[%clk 0:00:35]}  Ne8 {[%clk 0:02:03]} 19. f3 {[%clk 0:00:26]}  Nc7 {[%clk 0:01:45]} 20. Rad1 {[%clk 0:00:25]}  Rae8 {[%clk 0:01:43]} 21. e4 {[%clk 0:00:26]}  Nf6 {[%clk 0:01:14]} 22. Re2 {[%clk 0:00:24]}  h5 {[%clk 0:01:09]} 23. Rde1 {[%clk 0:00:24]}  a6 {[%clk 0:00:57]} 24. Rd1 {[%clk 0:00:23]}  Nb5 {[%clk 0:00:39]} 25. Nxb5 {[%clk 0:00:23]}  axb5 {[%clk 0:00:40]} 26. Rde1 {[%clk 0:00:20]}  dxe4 {[%clk 0:00:33]} 27. dxe4 {[%clk 0:00:20]}  Nd7 {[%clk 0:00:32]} 28. f4 {[%clk 0:00:18]}  f6 {[%clk 0:00:31]} 29. Bd4 {[%clk 0:00:17]}  Bf7 {[%clk 0:00:30]} 30. Bxb6 {[%clk 0:00:15]}  Bxb3 {[%clk 0:00:30]} 31. Bd4 {[%clk 0:00:14]}  Bc4 {[%clk 0:00:30]} 32. Kf2 {[%clk 0:00:14]}  Bxe2 {[%clk 0:00:30]} 33. Rxe2 {[%clk 0:00:15]}  Ra8 {[%clk 0:00:27]} 34. Bf3 {[%clk 0:00:15]}  Rae8 {[%clk 0:00:18]} 35. Re1 {[%clk 0:00:15]}  g6 {[%clk 0:00:16]} 36. g4 {[%clk 0:00:15]}  hxg4 {[%clk 0:00:15]} 37. hxg4 {[%clk 0:00:16]}  Kf7 {[%clk 0:00:15]} 38. Rh1 {[%clk 0:00:16]}  Nf8 {[%clk 0:00:14]} 39. Re1 {[%clk 0:00:14]}  Nd7 {[%clk 0:00:14]} 40. Bc3 {[%clk 0:00:14]}  g5 {[%clk 0:00:14]} 41. Kg3 {[%clk 0:00:12]}  gxf4+ {[%clk 0:00:14]} 42. Kxf4 {[%clk 0:00:13]}  Ne5 {[%clk 0:00:14]} 43. Bg2 {[%clk 0:00:11]}  Nd3+ {[%clk 0:00:13]} 44. Kg3 {[%clk 0:00:07]}  Nxe1 {[%clk 0:00:14]} 45. Bxe1 {[%clk 0:00:08]}  Rxe4 {[%clk 0:00:13]} 46. Bxe4 {[%clk 0:00:04]}  Rxe4 {[%clk 0:00:14]} 47. Bc3 {[%clk 0:00:04]}  Kg6 {[%clk 0:00:14]} 48. Kf3 {[%clk 0:00:05]}  Rc4 {[%clk 0:00:14]} 49. Bd2 {[%clk 0:00:03]}  b6 {[%clk 0:00:14]} 50. Kg3 {[%clk 0:00:02]}  c5 {[%clk 0:00:14]} 51. bxc5 {[%clk 0:00:03]}  bxc5 {[%clk 0:00:14]} 52. Be3 {[%clk 0:00:03]}  Rc2 {[%clk 0:00:13]} 53. b3 {[%clk 0:00:04]}  c4 {[%clk 0:00:13]} 54. Kf4 {[%clk 0:00:04]}  cxb3 {[%clk 0:00:11]} 0-1


[Site "https://www.chess.com"]

[Event "Titled Tuesday Blitz August 24 2021"]
[White "Taboas Rodriguez, Daniel"]
[Black "Jarovinsky, Alexey"]
[WhiteFideId "2208466"]
[BlackFideId "14115131"]
[WhiteElo "2429"]
[BlackElo "2446"]
[Result "1-0"]
[Round "05"]
[TimeControl "180+1"]
[Date "2021.08.24"]
[WhiteClock "0:00:11"]
[BlackClock "0:00:02"]

1. d4 {[%clk 0:01:19]}  Nc6 {[%clk 0:03:00]} 2. Nf3 {[%clk 0:01:20]}  d6 {[%clk 0:02:58]} 3. c4 {[%clk 0:01:21]}  Nf6 {[%clk 0:02:57]} 4. d5 {[%clk 0:01:20]}  Ne5 {[%clk 0:02:56]} 5. Nxe5 {[%clk 0:01:21]}  dxe5 {[%clk 0:02:57]} 6. Nc3 {[%clk 0:01:22]}  e6 {[%clk 0:02:57]} 7. e4 {[%clk 0:01:22]}  Bc5 {[%clk 0:02:56]} 8. Be2 {[%clk 0:01:22]}  O-O {[%clk 0:02:55]} 9. O-O {[%clk 0:01:23]}  h6 {[%clk 0:02:51]} 10. Bd2 {[%clk 0:01:17]}  c6 {[%clk 0:02:45]} 11. dxc6 {[%clk 0:01:16]}  bxc6 {[%clk 0:02:44]} 12. Qc2 {[%clk 0:01:17]}  Bd4 {[%clk 0:02:42]} 13. b4 {[%clk 0:01:13]}  c5 {[%clk 0:02:36]} 14. b5 {[%clk 0:01:13]}  Bb7 {[%clk 0:02:35]} 15. a4 {[%clk 0:01:13]}  Qc7 {[%clk 0:01:59]} 16. a5 {[%clk 0:01:12]}  Bxc3 {[%clk 0:01:55]} 17. Bxc3 {[%clk 0:01:06]}  Bxe4 {[%clk 0:01:52]} 18. Qb2 {[%clk 0:01:06]}  Nd7 {[%clk 0:01:48]} 19. f3 {[%clk 0:01:01]}  Bg6 {[%clk 0:01:44]} 20. Rfd1 {[%clk 0:00:59]}  f6 {[%clk 0:01:44]} 21. Bd3 {[%clk 0:00:55]}  Bxd3 {[%clk 0:01:41]} 22. Rxd3 {[%clk 0:00:56]}  Rfd8 {[%clk 0:01:40]} 23. Rad1 {[%clk 0:00:56]}  Nf8 {[%clk 0:01:39]} 24. b6 {[%clk 0:00:51]}  axb6 {[%clk 0:01:28]} 25. axb6 {[%clk 0:00:52]}  Rxd3 {[%clk 0:01:14]} 26. bxc7 {[%clk 0:00:47]}  Rxd1+ {[%clk 0:01:14]} 27. Kf2 {[%clk 0:00:47]}  Rd7 {[%clk 0:00:46]} 28. Qb8 {[%clk 0:00:36]}  Ra2+ {[%clk 0:00:27]} 29. Kg3 {[%clk 0:00:36]}  Rxc7 {[%clk 0:00:27]} 30. Qxc7 {[%clk 0:00:36]}  Ng6 {[%clk 0:00:28]} 31. f4 {[%clk 0:00:15]}  exf4+ {[%clk 0:00:20]} 32. Kf3 {[%clk 0:00:16]}  e5 {[%clk 0:00:20]} 33. Ke4 {[%clk 0:00:15]}  Rxg2 {[%clk 0:00:19]} 34. Kf5 {[%clk 0:00:14]}  Nh4+ {[%clk 0:00:15]} 35. Ke6 {[%clk 0:00:13]}  f3 {[%clk 0:00:14]} 36. Be1 {[%clk 0:00:14]}  Ng6 {[%clk 0:00:11]} 37. Qxc5 {[%clk 0:00:12]}  Re2 {[%clk 0:00:09]} 38. Bg3 {[%clk 0:00:11]}  Nf4+ {[%clk 0:00:08]} 39. Ke7 {[%clk 0:00:10]}  Rg2 {[%clk 0:00:04]} 40. Qc8+ {[%clk 0:00:10]}  Kh7 {[%clk 0:00:04]} 41. Kf7 {[%clk 0:00:11]}  h5 {[%clk 0:00:01]} 42. Qg8+ {[%clk 0:00:11]}  Kh6 {[%clk 0:00:02]} 43. Qxg7# {[%clk 0:00:11]} 1-0


[Site "https://www.chess.com"]

[Event "Titled Tuesday Blitz August 24 2021"]
[White "Tang, Andrew"]
[Black "Mitrabha, Guha"]
[WhiteFideId "2059630"]
[BlackFideId "5057000"]
[WhiteElo "2588"]
[BlackElo "2334"]
[Result "1-0"]
[Round "05"]
[TimeControl "180+1"]
[Date "2021.08.24"]
[WhiteClock "0:00:04"]
[BlackClock "0:00:09"]

1. d4 {[%clk 0:02:51]}  Nf6 {[%clk 0:02:59]} 2. c4 {[%clk 0:02:50]}  c5 {[%clk 0:02:59]} 3. d5 {[%clk 0:02:51]}  e6 {[%clk 0:02:59]} 4. Nc3 {[%clk 0:02:51]}  exd5 {[%clk 0:02:59]} 5. cxd5 {[%clk 0:02:52]}  d6 {[%clk 0:03:00]} 6. e4 {[%clk 0:02:53]}  a6 {[%clk 0:03:01]} 7. a4 {[%clk 0:02:53]}  g6 {[%clk 0:03:01]} 8. Nge2 {[%clk 0:02:53]}  Bg7 {[%clk 0:03:01]} 9. Ng3 {[%clk 0:02:54]}  O-O {[%clk 0:03:02]} 10. Be2 {[%clk 0:02:55]}  Nbd7 {[%clk 0:03:02]} 11. O-O {[%clk 0:02:54]}  Qe7 {[%clk 0:03:02]} 12. h3 {[%clk 0:02:53]}  Rb8 {[%clk 0:03:02]} 13. Bg5 {[%clk 0:02:53]}  h6 {[%clk 0:03:01]} 14. Be3 {[%clk 0:02:53]}  Ne8 {[%clk 0:03:01]} 15. Qd2 {[%clk 0:02:53]}  Kh7 {[%clk 0:03:02]} 16. f4 {[%clk 0:02:54]}  Nc7 {[%clk 0:03:02]} 17. e5 {[%clk 0:02:53]}  f5 {[%clk 0:02:53]} 18. e6 {[%clk 0:02:52]}  Nf6 {[%clk 0:02:54]} 19. a5 {[%clk 0:02:52]}  b5 {[%clk 0:02:51]} 20. axb6 {[%clk 0:02:47]}  Rxb6 {[%clk 0:02:51]} 21. Bc4 {[%clk 0:02:47]}  Rb4 {[%clk 0:02:51]} 22. b3 {[%clk 0:02:46]}  Bb7 {[%clk 0:02:51]} 23. Bxc5 {[%clk 0:02:44]}  Rxc4 {[%clk 0:02:38]} 24. bxc4 {[%clk 0:02:39]}  dxc5 {[%clk 0:02:39]} 25. Rab1 {[%clk 0:02:23]}  Nce8 {[%clk 0:02:36]} 26. Qe3 {[%clk 0:02:17]}  Nd6 {[%clk 0:02:08]} 27. Qxc5 {[%clk 0:02:13]}  Rc8 {[%clk 0:02:08]} 28. Rxb7 {[%clk 0:02:12]}  Qxb7 {[%clk 0:02:09]} 29. Qxd6 {[%clk 0:02:10]}  Rxc4 {[%clk 0:02:09]} 30. Nge2 {[%clk 0:02:07]}  Ng8 {[%clk 0:01:28]} 31. Rb1 {[%clk 0:01:39]}  Qa7+ {[%clk 0:01:25]} 32. Qb6 {[%clk 0:01:25]}  Qxb6+ {[%clk 0:01:20]} 33. Rxb6 {[%clk 0:01:23]}  Rxc3 {[%clk 0:01:18]} 34. Rxa6 {[%clk 0:00:38]}  Re3 {[%clk 0:01:08]} 35. Kf2 {[%clk 0:00:37]}  Re4 {[%clk 0:01:08]} 36. d6 {[%clk 0:00:26]}  Rxe6 {[%clk 0:01:06]} 37. d7 {[%clk 0:00:26]}  Rxa6 {[%clk 0:01:06]} 38. d8=Q {[%clk 0:00:27]}  Nf6 {[%clk 0:01:07]} 39. Qe7 {[%clk 0:00:21]}  Ne4+ {[%clk 0:01:05]} 40. Kg1 {[%clk 0:00:20]}  h5 {[%clk 0:01:03]} 41. Nd4 {[%clk 0:00:19]}  Kh6 {[%clk 0:00:33]} 42. Ne6 {[%clk 0:00:13]}  Bf6 {[%clk 0:00:34]} 43. Qf8+ {[%clk 0:00:11]}  Kh7 {[%clk 0:00:34]} 44. Qf7+ {[%clk 0:00:11]}  Kh6 {[%clk 0:00:34]} 45. Nf8 {[%clk 0:00:12]}  Bg7 {[%clk 0:00:32]} 46. Qg8 {[%clk 0:00:12]}  Nf6 {[%clk 0:00:31]} 47. Qf7 {[%clk 0:00:12]}  Ne4 {[%clk 0:00:27]} 48. Ne6 {[%clk 0:00:07]}  Bf6 {[%clk 0:00:24]} 49. h4 {[%clk 0:00:04]}  Ra1+ {[%clk 0:00:14]} 50. Kh2 {[%clk 0:00:04]}  Nf2 {[%clk 0:00:13]} 51. Qf8+ {[%clk 0:00:02]}  Kh7 {[%clk 0:00:13]} 52. Qf7+ {[%clk 0:00:03]}  Kh6 {[%clk 0:00:14]} 53. Ng5 {[%clk 0:00:03]}  Ng4+ {[%clk 0:00:13]} 54. Kh3 {[%clk 0:00:03]}  Bg7 {[%clk 0:00:11]} 55. Qg8 {[%clk 0:00:03]}  Nf2+ {[%clk 0:00:10]} 56. Kg3 {[%clk 0:00:03]}  Ne4+ {[%clk 0:00:10]} 57. Kh2 {[%clk 0:00:04]}  Nf6 {[%clk 0:00:09]} 58. Nf7# {[%clk 0:00:04]} 1-0


[Site "https://www.chess.com"]

[Event "Titled Tuesday Blitz August 24 2021"]
[White "Timofeev, Artyom"]
[Black "Gontcharov, Vladislav"]
[WhiteFideId "4140419"]
[BlackFideId "4123492"]
[WhiteElo "2582"]
[BlackElo "2503"]
[Result "1-0"]
[Round "05"]
[TimeControl "180+1"]
[Date "2021.08.24"]
[WhiteClock "0:00:42"]
[BlackClock "0:00:02"]

1. c4 {[%clk 0:03:00]}  Nf6 {[%clk 0:02:57]} 2. Nc3 {[%clk 0:03:00]}  c5 {[%clk 0:02:55]} 3. g3 {[%clk 0:02:59]}  Nc6 {[%clk 0:02:54]} 4. Bg2 {[%clk 0:02:59]}  g6 {[%clk 0:02:54]} 5. e3 {[%clk 0:02:58]}  Bg7 {[%clk 0:02:53]} 6. Nge2 {[%clk 0:02:59]}  O-O {[%clk 0:02:53]} 7. O-O {[%clk 0:02:59]}  d6 {[%clk 0:02:48]} 8. d4 {[%clk 0:02:58]}  Bg4 {[%clk 0:02:46]} 9. h3 {[%clk 0:02:58]}  Bxe2 {[%clk 0:02:45]} 10. Nxe2 {[%clk 0:02:57]}  cxd4 {[%clk 0:02:45]} 11. Nxd4 {[%clk 0:02:55]}  Rc8 {[%clk 0:02:38]} 12. Nxc6 {[%clk 0:02:43]}  bxc6 {[%clk 0:02:37]} 13. Qa4 {[%clk 0:02:43]}  Qb6 {[%clk 0:02:36]} 14. Rd1 {[%clk 0:02:43]}  Nd7 {[%clk 0:02:34]} 15. Rb1 {[%clk 0:02:38]}  Nc5 {[%clk 0:02:30]} 16. Qc2 {[%clk 0:02:38]}  a5 {[%clk 0:02:30]} 17. b3 {[%clk 0:02:38]}  Ra8 {[%clk 0:02:15]} 18. Bd2 {[%clk 0:02:38]}  Rfb8 {[%clk 0:02:13]} 19. Be1 {[%clk 0:02:37]}  Ra7 {[%clk 0:01:59]} 20. h4 {[%clk 0:02:36]}  h5 {[%clk 0:01:57]} 21. Bf3 {[%clk 0:02:34]}  Bf6 {[%clk 0:01:54]} 22. Kg2 {[%clk 0:02:34]}  Kg7 {[%clk 0:01:53]} 23. Rdc1 {[%clk 0:02:28]}  Rab7 {[%clk 0:01:38]} 24. Bd1 {[%clk 0:02:24]}  Qa6 {[%clk 0:01:36]} 25. Qe2 {[%clk 0:02:21]}  Qa7 {[%clk 0:01:32]} 26. Bc2 {[%clk 0:02:17]}  Qa6 {[%clk 0:01:22]} 27. Rd1 {[%clk 0:02:15]}  Rb6 {[%clk 0:01:20]} 28. Qd2 {[%clk 0:02:13]}  Ra8 {[%clk 0:01:07]} 29. a3 {[%clk 0:02:10]}  Ne6 {[%clk 0:01:02]} 30. Qe2 {[%clk 0:02:02]}  Rab8 {[%clk 0:01:00]} 31. b4 {[%clk 0:01:59]}  axb4 {[%clk 0:01:00]} 32. axb4 {[%clk 0:01:59]}  Qb7 {[%clk 0:00:55]} 33. Be4 {[%clk 0:01:56]}  Qc8 {[%clk 0:00:54]} 34. Bf3 {[%clk 0:01:55]}  Nc7 {[%clk 0:00:51]} 35. Rdc1 {[%clk 0:01:50]}  Na6 {[%clk 0:00:47]} 36. b5 {[%clk 0:01:48]}  cxb5 {[%clk 0:00:45]} 37. cxb5 {[%clk 0:01:47]}  Nc5 {[%clk 0:00:45]} 38. Ba5 {[%clk 0:01:46]}  R6b7 {[%clk 0:00:37]} 39. Bxb7 {[%clk 0:01:43]}  Qxb7+ {[%clk 0:00:37]} 40. Qf3 {[%clk 0:01:43]}  Qa7 {[%clk 0:00:37]} 41. Bc3 {[%clk 0:01:33]}  Bxc3 {[%clk 0:00:31]} 42. Rxc3 {[%clk 0:01:33]}  Qa5 {[%clk 0:00:29]} 43. Rcc1 {[%clk 0:01:28]}  Rxb5 {[%clk 0:00:29]} 44. Rxb5 {[%clk 0:01:27]}  Qxb5 {[%clk 0:00:29]} 45. Qd5 {[%clk 0:01:27]}  Qa6 {[%clk 0:00:19]} 46. Rb1 {[%clk 0:01:24]}  Ne6 {[%clk 0:00:18]} 47. Rb7 {[%clk 0:01:16]}  Kf8 {[%clk 0:00:13]} 48. Rb8+ {[%clk 0:01:10]}  Kg7 {[%clk 0:00:12]} 49. Qa8 {[%clk 0:01:10]}  Qxa8+ {[%clk 0:00:12]} 50. Rxa8 {[%clk 0:01:11]}  Kf6 {[%clk 0:00:12]} 51. Kf3 {[%clk 0:01:06]}  Nc5 {[%clk 0:00:13]} 52. Ra7 {[%clk 0:01:03]}  Nd3 {[%clk 0:00:13]} 53. Ke2 {[%clk 0:01:03]}  Nc5 {[%clk 0:00:14]} 54. f3 {[%clk 0:01:02]}  Ne6 {[%clk 0:00:14]} 55. Kd3 {[%clk 0:01:00]}  Nc5+ {[%clk 0:00:15]} 56. Kc4 {[%clk 0:01:00]}  Ne6 {[%clk 0:00:15]} 57. Ra1 {[%clk 0:00:57]}  g5 {[%clk 0:00:15]} 58. Rh1 {[%clk 0:00:56]}  Kg6 {[%clk 0:00:15]} 59. Kd3 {[%clk 0:00:56]}  f5 {[%clk 0:00:15]} 60. Ke2 {[%clk 0:00:56]}  Kf6 {[%clk 0:00:11]} 61. hxg5+ {[%clk 0:00:56]}  Kxg5 {[%clk 0:00:11]} 62. Kf2 {[%clk 0:00:53]}  Nc5 {[%clk 0:00:11]} 63. Rd1 {[%clk 0:00:53]}  h4 {[%clk 0:00:10]} 64. gxh4+ {[%clk 0:00:52]}  Kxh4 {[%clk 0:00:10]} 65. Rg1 {[%clk 0:00:52]}  Nd3+ {[%clk 0:00:07]} 66. Ke2 {[%clk 0:00:51]}  Ne5 {[%clk 0:00:06]} 67. Rg7 {[%clk 0:00:51]}  Nc6 {[%clk 0:00:06]} 68. f4 {[%clk 0:00:46]}  Kh5 {[%clk 0:00:04]} 69. Rg5+ {[%clk 0:00:46]}  Kh6 {[%clk 0:00:05]} 70. Rxf5 {[%clk 0:00:46]}  Kg6 {[%clk 0:00:05]} 71. Rb5 {[%clk 0:00:45]}  Kf6 {[%clk 0:00:05]} 72. Kf3 {[%clk 0:00:45]}  Ke6 {[%clk 0:00:03]} 73. Rh5 {[%clk 0:00:44]}  Kf6 {[%clk 0:00:03]} 74. Ke4 {[%clk 0:00:44]}  e6 {[%clk 0:00:02]} 75. Rh6+ {[%clk 0:00:44]}  Kf7 {[%clk 0:00:02]} 76. Kf3 {[%clk 0:00:43]}  Ne7 {[%clk 0:00:02]} 77. e4 {[%clk 0:00:43]}  Kg7 {[%clk 0:00:02]} 78. Rxe6 {[%clk 0:00:42]} 1-0


[Site "https://www.chess.com"]

[Event "Titled Tuesday Blitz August 24 2021"]
[White "Tokman, Ariel"]
[Black "Tanenbaum, Zachary"]
[WhiteFideId "117420"]
[BlackFideId "2060850"]
[WhiteElo "2345"]
[BlackElo "2165"]
[Result "0-1"]
[Round "05"]
[TimeControl "180+1"]
[Date "2021.08.24"]
[WhiteClock "0:00:04"]
[BlackClock "0:00:08"]

1. e4 {[%clk 0:02:32]}  e5 {[%clk 0:02:59]} 2. Nf3 {[%clk 0:02:31]}  Nc6 {[%clk 0:02:59]} 3. Bb5 {[%clk 0:02:30]}  a6 {[%clk 0:03:00]} 4. Ba4 {[%clk 0:02:29]}  d6 {[%clk 0:03:00]} 5. O-O {[%clk 0:02:28]}  Nf6 {[%clk 0:03:01]} 6. Re1 {[%clk 0:02:27]}  Be7 {[%clk 0:03:01]} 7. c3 {[%clk 0:02:27]}  O-O {[%clk 0:03:01]} 8. h3 {[%clk 0:02:27]}  b5 {[%clk 0:03:01]} 9. Bc2 {[%clk 0:02:27]}  Nb8 {[%clk 0:02:59]} 10. d4 {[%clk 0:02:27]}  Nbd7 {[%clk 0:03:00]} 11. Nbd2 {[%clk 0:02:27]}  Re8 {[%clk 0:02:59]} 12. Nf1 {[%clk 0:02:27]}  Bf8 {[%clk 0:03:00]} 13. Ng3 {[%clk 0:02:27]}  Bb7 {[%clk 0:03:01]} 14. Bg5 {[%clk 0:02:24]}  c6 {[%clk 0:02:43]} 15. Qd2 {[%clk 0:02:19]}  h6 {[%clk 0:02:41]} 16. Be3 {[%clk 0:02:19]}  Nb6 {[%clk 0:02:41]} 17. b3 {[%clk 0:02:16]}  Qc7 {[%clk 0:02:39]} 18. Nf5 {[%clk 0:02:14]}  exd4 {[%clk 0:02:23]} 19. Bxd4 {[%clk 0:02:11]}  Nbd7 {[%clk 0:02:23]} 20. Qf4 {[%clk 0:02:03]}  Re6 {[%clk 0:01:52]} 21. Qg3 {[%clk 0:01:48]}  g6 {[%clk 0:01:46]} 22. b4 {[%clk 0:01:40]}  c5 {[%clk 0:01:35]} 23. bxc5 {[%clk 0:01:36]}  Nxc5 {[%clk 0:01:36]} 24. Qh4 {[%clk 0:01:19]}  gxf5 {[%clk 0:01:06]} 25. Bxf6 {[%clk 0:01:18]}  Nxe4 {[%clk 0:00:32]} 26. Bxe4 {[%clk 0:00:25]}  Bxe4 {[%clk 0:00:33]} 27. Nd4 {[%clk 0:00:23]}  Rxf6 {[%clk 0:00:32]} 28. Qxf6 {[%clk 0:00:22]}  Bg7 {[%clk 0:00:32]} 29. Qh4 {[%clk 0:00:19]}  Qxc3 {[%clk 0:00:32]} 30. Ne2 {[%clk 0:00:11]}  Qa3 {[%clk 0:00:18]} 31. Rac1 {[%clk 0:00:10]}  Qxa2 {[%clk 0:00:17]} 32. Ng3 {[%clk 0:00:09]}  d5 {[%clk 0:00:16]} 33. Nh5 {[%clk 0:00:06]}  Bd4 {[%clk 0:00:15]} 34. Nf6+ {[%clk 0:00:04]}  Kg7 {[%clk 0:00:14]} 35. Nh5+ {[%clk 0:00:04]}  Kf8 {[%clk 0:00:11]} 36. Kh1 {[%clk 0:00:05]}  Qxf2 {[%clk 0:00:10]} 37. Qxf2 {[%clk 0:00:03]}  Bxf2 {[%clk 0:00:11]} 38. Rf1 {[%clk 0:00:04]}  Be3 {[%clk 0:00:11]} 39. Rc7 {[%clk 0:00:04]}  d4 {[%clk 0:00:10]} 40. Nf4 {[%clk 0:00:04]}  d3 {[%clk 0:00:08]} 0-1


[Site "https://www.chess.com"]

[Event "Titled Tuesday Blitz August 24 2021"]
[White "Tristan, Leonardo"]
[Black "Maghsoodloo, Parham"]
[WhiteFideId "113816"]
[BlackFideId "12539929"]
[WhiteElo "2404"]
[BlackElo "2601"]
[Result "0-1"]
[Round "05"]
[TimeControl "180+1"]
[Date "2021.08.24"]
[WhiteClock "0:00:01"]
[BlackClock "0:01:04"]

1. d4 {[%clk 0:03:00]}  Nf6 {[%clk 0:02:56]} 2. Nf3 {[%clk 0:03:00]}  d5 {[%clk 0:02:55]} 3. Bf4 {[%clk 0:03:00]}  c5 {[%clk 0:02:53]} 4. e3 {[%clk 0:03:01]}  Nc6 {[%clk 0:02:52]} 5. Nbd2 {[%clk 0:03:01]}  cxd4 {[%clk 0:02:50]} 6. exd4 {[%clk 0:03:01]}  Qb6 {[%clk 0:02:51]} 7. Nb3 {[%clk 0:03:01]}  Bf5 {[%clk 0:02:49]} 8. c3 {[%clk 0:02:35]}  e6 {[%clk 0:02:44]} 9. a4 {[%clk 0:02:32]}  a6 {[%clk 0:02:37]} 10. a5 {[%clk 0:02:32]}  Qd8 {[%clk 0:02:36]} 11. Bd3 {[%clk 0:02:29]}  Bxd3 {[%clk 0:02:34]} 12. Qxd3 {[%clk 0:02:29]}  b5 {[%clk 0:02:23]} 13. axb6 {[%clk 0:01:30]}  Qxb6 {[%clk 0:02:20]} 14. Nbd2 {[%clk 0:01:31]}  Be7 {[%clk 0:02:14]} 15. O-O {[%clk 0:01:29]}  O-O {[%clk 0:02:14]} 16. Ra2 {[%clk 0:01:16]}  Qb5 {[%clk 0:02:13]} 17. Qxb5 {[%clk 0:00:50]}  axb5 {[%clk 0:02:13]} 18. Rfa1 {[%clk 0:00:51]}  Rxa2 {[%clk 0:02:13]} 19. Rxa2 {[%clk 0:00:52]}  b4 {[%clk 0:02:13]} 20. Ra6 {[%clk 0:00:52]}  Rc8 {[%clk 0:02:10]} 21. Ne5 {[%clk 0:00:13]}  Nxe5 {[%clk 0:02:10]} 22. dxe5 {[%clk 0:00:14]}  Nh5 {[%clk 0:01:56]} 23. Be3 {[%clk 0:00:14]}  bxc3 {[%clk 0:01:56]} 24. bxc3 {[%clk 0:00:14]}  g5 {[%clk 0:01:55]} 25. Bd4 {[%clk 0:00:10]}  Nf4 {[%clk 0:01:48]} 26. Kf1 {[%clk 0:00:10]}  Bc5 {[%clk 0:01:48]} 27. Nf3 {[%clk 0:00:09]}  Bxd4 {[%clk 0:01:46]} 28. Nxd4 {[%clk 0:00:09]}  Rxc3 {[%clk 0:01:46]} 29. f3 {[%clk 0:00:09]}  Rd3 {[%clk 0:01:36]} 30. Nc6 {[%clk 0:00:07]}  Rd1+ {[%clk 0:01:36]} 31. Kf2 {[%clk 0:00:06]}  Rd2+ {[%clk 0:01:36]} 32. Kf1 {[%clk 0:00:07]}  Nxg2 {[%clk 0:01:30]} 33. Ra7 {[%clk 0:00:05]}  Ne3+ {[%clk 0:01:28]} 34. Ke1 {[%clk 0:00:06]}  Rxh2 {[%clk 0:01:28]} 35. Nd8 {[%clk 0:00:06]}  d4 {[%clk 0:01:22]} 36. Rd7 {[%clk 0:00:06]}  Kf8 {[%clk 0:01:16]} 37. Nc6 {[%clk 0:00:01]}  Nf5 {[%clk 0:01:15]} 38. Rd8+ {[%clk 0:00:01]}  Kg7 {[%clk 0:01:14]} 39. Rd7 {[%clk 0:00:01]}  Kg6 {[%clk 0:01:09]} 40. Nd8 {[%clk 0:00:01]}  Nh4 {[%clk 0:01:04]} 0-1


[Site "https://www.chess.com"]